[Event "*** Titled Tuesday Blitz"]
[Site "Chess.com"]
[Date "2019.04.02"]
[Round "4"]
[White "mbojan"]
[Black "MaxLeto"]
[Result "1/2-1/2"]
[WhiteElo "2497"]
[BlackElo "2325"]
[TimeControl "180+2"]
[EndTime "14:54:07 PDT"]
[Termination "Game drawn - insufficient material"]

1. e4 {[%clk 0:03:01.9]} 1... c5 {[%clk 0:02:25.3]} 2. Nc3 {[%clk 0:03:01.5]}
2... Nc6 {[%clk 0:02:25.4]} 3. Nf3 {[%clk 0:02:55.2]} 3... e5 {[%clk 0:02:23.5]}
4. Bc4 {[%clk 0:02:54.6]} 4... d6 {[%clk 0:02:23.4]} 5. d3 {[%clk 0:02:55.6]}
5... g6 {[%clk 0:02:24.3]} 6. Nd2 {[%clk 0:02:51.3]} 6... Bg7 {[%clk 0:02:24.9]}
7. Nf1 {[%clk 0:02:52.6]} 7... Nge7 {[%clk 0:02:25]} 8. Ne3 {[%clk 0:02:53.6]}
8... Be6 {[%clk 0:02:24.9]} 9. O-O {[%clk 0:02:51]} 9... Qd7 {[%clk 0:02:22.6]}
10. Ncd5 {[%clk 0:02:49.2]} 10... O-O {[%clk 0:02:16.2]} 11. a4 {[%clk
0:02:42.9]} 11... f5 {[%clk 0:01:46.4]} 12. Nxe7+ {[%clk 0:02:42.5]} 12... Nxe7
{[%clk 0:01:46.4]} 13. Bxe6+ {[%clk 0:02:37]} 13... Qxe6 {[%clk 0:01:48.3]} 14.
exf5 {[%clk 0:02:38.3]} 14... gxf5 {[%clk 0:00:54.9]} 15. f3 {[%clk 0:01:55]}
15... d5 {[%clk 0:00:51.9]} 16. Qe2 {[%clk 0:01:53.3]} 16... b6 {[%clk 0:00:41]}
17. Bd2 {[%clk 0:01:54.2]} 17... Rae8 {[%clk 0:00:40.4]} 18. Rae1 {[%clk
0:01:43.6]} 18... Kh8 {[%clk 0:00:40.8]} 19. Nd1 {[%clk 0:01:42.6]} 19... Nc6
{[%clk 0:00:41.5]} 20. c3 {[%clk 0:01:42.7]} 20... Qg6 {[%clk 0:00:35]} 21. Nf2
{[%clk 0:01:42]} 21... Bf6 {[%clk 0:00:35]} 22. Kh1 {[%clk 0:01:16.5]} 22... Re7
{[%clk 0:00:35.9]} 23. Rg1 {[%clk 0:01:17.2]} 23... Rfe8 {[%clk 0:00:34.5]} 24.
c4 {[%clk 0:01:17.9]} 24... Nd4 {[%clk 0:00:34.6]} 25. Qd1 {[%clk 0:01:17.1]}
25... Qf7 {[%clk 0:00:29.3]} 26. cxd5 {[%clk 0:01:09.6]} 26... Qxd5 {[%clk
0:00:31.2]} 27. Bc3 {[%clk 0:01:08.8]} 27... Rd8 {[%clk 0:00:30.8]} 28. Bxd4
{[%clk 0:01:00.6]} 28... Qxd4 {[%clk 0:00:32.7]} 29. Qc2 {[%clk 0:01:01.8]}
29... Red7 {[%clk 0:00:33.4]} 30. b3 {[%clk 0:01:02.4]} 30... Qf4 {[%clk
0:00:32.9]} 31. Re2 {[%clk 0:01:01.1]} 31... Rd6 {[%clk 0:00:33.6]} 32. Nh3
{[%clk 0:01:01.7]} 32... Qh4 {[%clk 0:00:30.9]} 33. Rd1 {[%clk 0:00:54.1]} 33...
e4 {[%clk 0:00:21]} 34. fxe4 {[%clk 0:00:55]} 34... fxe4 {[%clk 0:00:21.7]} 35.
Nf2 {[%clk 0:00:54.3]} 35... Be5 {[%clk 0:00:15.1]} 36. g3 {[%clk 0:00:46]}
36... Bxg3 {[%clk 0:00:11]} 37. Nxe4 {[%clk 0:00:47.3]} 37... Rh6 {[%clk
0:00:07]} 38. Qb2+ {[%clk 0:00:30.5]} 38... Rd4 {[%clk 0:00:07.8]} 39. Rg1
{[%clk 0:00:31.7]} 39... Be5 {[%clk 0:00:08.5]} 40. Reg2 {[%clk 0:00:28.7]}
40... Rg6 {[%clk 0:00:07.5]} 41. Rxg6 {[%clk 0:00:28.3]} 41... hxg6 {[%clk
0:00:09.4]} 42. Qg2 {[%clk 0:00:27.9]} 42... Rxd3 {[%clk 0:00:05.3]} 43. Ng5
{[%clk 0:00:28.4]} 43... Rg3 {[%clk 0:00:03.5]} 44. Qa8+ {[%clk 0:00:20.7]}
44... Kg7 {[%clk 0:00:04.1]} 45. Qb7+ {[%clk 0:00:17.8]} 45... Kh6 {[%clk
0:00:04.5]} 46. Nf7+ {[%clk 0:00:18.6]} 46... Kh5 {[%clk 0:00:05.7]} 47. Nxe5
{[%clk 0:00:16.7]} 47... Rxg1+ {[%clk 0:00:07]} 48. Kxg1 {[%clk 0:00:18.2]}
48... Qe1+ {[%clk 0:00:08.2]} 49. Kg2 {[%clk 0:00:19.8]} 49... Qe2+ {[%clk
0:00:08.5]} 50. Kh3 {[%clk 0:00:19.8]} 50... Qxe5 {[%clk 0:00:08.3]} 51. Qxa7
{[%clk 0:00:21]} 51... Qe3+ {[%clk 0:00:08.6]} 52. Kg2 {[%clk 0:00:22.4]} 52...
Qd2+ {[%clk 0:00:09.7]} 53. Kg3 {[%clk 0:00:23.2]} 53... Qc3+ {[%clk 0:00:09.9]}
54. Kf4 {[%clk 0:00:24.6]} 54... Qb4+ {[%clk 0:00:10.9]} 55. Ke5 {[%clk
0:00:21.9]} 55... Qxb3 {[%clk 0:00:12.4]} 56. Kd6 {[%clk 0:00:21.4]} 56... Qd3+
{[%clk 0:00:09.2]} 57. Kc6 {[%clk 0:00:22.1]} 57... c4 {[%clk 0:00:10.1]} 58.
Qh7+ {[%clk 0:00:21.4]} 58... Kg5 {[%clk 0:00:11]} 59. Qe7+ {[%clk 0:00:22.4]}
59... Kg4 {[%clk 0:00:11.1]} 60. Kxb6 {[%clk 0:00:21.4]} 60... c3 {[%clk
0:00:10.5]} 61. Qe6+ {[%clk 0:00:21.6]} 61... Kg5 {[%clk 0:00:11.6]} 62. Qe5+
{[%clk 0:00:21.8]} 62... Kg4 {[%clk 0:00:10.3]} 63. Qe6+ {[%clk 0:00:22.7]}
63... Kh5 {[%clk 0:00:11]} 64. Qe5+ {[%clk 0:00:23.2]} 64... g5 {[%clk
0:00:10.5]} 65. Qh8+ {[%clk 0:00:23.4]} 65... Kg4 {[%clk 0:00:11.8]} 66. Qc8+
{[%clk 0:00:24.3]} 66... Kf3 {[%clk 0:00:12.3]} 67. a5 {[%clk 0:00:24.8]} 67...
c2 {[%clk 0:00:12.9]} 68. a6 {[%clk 0:00:26.4]} 68... Qb3+ {[%clk 0:00:14.1]}
69. Ka7 {[%clk 0:00:24.4]} 69... Qb2 {[%clk 0:00:14.7]} 70. Qf5+ {[%clk
0:00:25.5]} 70... Ke2 {[%clk 0:00:14.8]} 71. Qe4+ {[%clk 0:00:26.6]} 71... Kd2
{[%clk 0:00:15.5]} 72. Qg2+ {[%clk 0:00:26.6]} 72... Kc3 {[%clk 0:00:14.2]} 73.
Qf3+ {[%clk 0:00:27.5]} 73... Kb4 {[%clk 0:00:14.5]} 74. Qe4+ {[%clk 0:00:24.7]}
74... Ka3 {[%clk 0:00:11.5]} 75. Qd3+ {[%clk 0:00:21.2]} 75... Ka2 {[%clk
0:00:08.9]} 76. Qd5+ {[%clk 0:00:21.5]} 76... Ka1 {[%clk 0:00:04.6]} 77. Qa5+
{[%clk 0:00:20.6]} 77... Kb1 {[%clk 0:00:05.7]} 78. Qf5 {[%clk 0:00:21.6]} 78...
Ka2 {[%clk 0:00:04.2]} 79. Qa5+ {[%clk 0:00:19.9]} 79... Kb1 {[%clk 0:00:05.2]}
80. Qf5 {[%clk 0:00:21]} 80... g4 {[%clk 0:00:04.8]} 81. Ka8 {[%clk 0:00:20.2]}
81... Qh8+ {[%clk 0:00:05.7]} 82. Ka7 {[%clk 0:00:21.2]} 82... Qg7+ {[%clk
0:00:06.7]} 83. Kb6 {[%clk 0:00:20.6]} 83... Qb2+ {[%clk 0:00:07.3]} 84. Kc7
{[%clk 0:00:22.1]} 84... Qc3+ {[%clk 0:00:07.8]} 85. Kb7 {[%clk 0:00:23.5]}
85... Qb4+ {[%clk 0:00:08.5]} 86. Kc7 {[%clk 0:00:23.8]} 86... Qc4+ {[%clk
0:00:09.7]} 87. Kb7 {[%clk 0:00:25.1]} 87... Kb2 {[%clk 0:00:10.8]} 88. Qe5+
{[%clk 0:00:21.6]} 88... Ka3 {[%clk 0:00:09.8]} 89. Qa1+ {[%clk 0:00:20.9]}
89... Kb3 {[%clk 0:00:11.2]} 90. a7 {[%clk 0:00:19.8]} 90... c1=Q {[%clk
0:00:10]} 91. Qxc1 {[%clk 0:00:12.7]} 91... Qxc1 {[%clk 0:00:11.9]} 92. a8=Q
{[%clk 0:00:14.4]} 92... Qh1+ {[%clk 0:00:12.2]} 93. Ka7 {[%clk 0:00:15.9]}
93... Qxa8+ {[%clk 0:00:10.2]} 94. Kxa8 {[%clk 0:00:17.8]} 94... Kc3 {[%clk
0:00:11.2]} 95. Kb7 {[%clk 0:00:19.4]} 95... Kd4 {[%clk 0:00:12.4]} 96. Kc6
{[%clk 0:00:20.8]} 96... Ke4 {[%clk 0:00:13.7]} 97. Kd6 {[%clk 0:00:22.2]} 97...
Kf3 {[%clk 0:00:15.2]} 98. Ke5 {[%clk 0:00:23.6]} 98... Kg2 {[%clk 0:00:16.6]}
99. Kf4 {[%clk 0:00:25.1]} 99... Kh3 {[%clk 0:00:16.2]} 100. Kg5 {[%clk
0:00:26.2]} 100... g3 {[%clk 0:00:15.9]} 101. hxg3 {[%clk 0:00:27.2]} 101...
Kxg3 {[%clk 0:00:17.8]} 1/2-1/2

[Event "*** Titled Tuesday Blitz"]
[Site "Chess.com"]
[Date "2019.04.02"]
[Round "4"]
[White "BlackBoarder"]
[Black "AdrianaNikolova"]
[Result "1/2-1/2"]
[WhiteElo "2525"]
[BlackElo "2461"]
[TimeControl "180+2"]
[EndTime "14:54:08 PDT"]
[Termination "Game drawn - insufficient material"]

1. e4 {[%clk 0:03:01.8]} 1... c5 {[%clk 0:02:58.6]} 2. Nf3 {[%clk 0:02:57.8]}
2... d6 {[%clk 0:02:59.6]} 3. c3 {[%clk 0:02:55.8]} 3... Nf6 {[%clk 0:02:55.4]}
4. h3 {[%clk 0:02:56.9]} 4... e6 {[%clk 0:02:50.8]} 5. Bd3 {[%clk 0:02:57.1]}
5... Nc6 {[%clk 0:02:48.8]} 6. O-O {[%clk 0:02:57.7]} 6... d5 {[%clk 0:02:50.3]}
7. e5 {[%clk 0:02:58.6]} 7... Nd7 {[%clk 0:02:51.2]} 8. Bb5 {[%clk 0:03:00.2]}
8... Qc7 {[%clk 0:02:52]} 9. d4 {[%clk 0:03:00.9]} 9... a6 {[%clk 0:02:47.5]}
10. Ba4 {[%clk 0:03:01.8]} 10... b5 {[%clk 0:02:46]} 11. Bc2 {[%clk 0:03:02.9]}
11... b4 {[%clk 0:02:23.1]} 12. Re1 {[%clk 0:03:00.9]} 12... a5 {[%clk
0:02:22.2]} 13. Nbd2 {[%clk 0:02:49.4]} 13... Ba6 {[%clk 0:02:05.6]} 14. Ng5
{[%clk 0:02:25.4]} 14... Nb6 {[%clk 0:01:53]} 15. Nxh7 {[%clk 0:02:04.5]} 15...
Be7 {[%clk 0:01:53.2]} 16. dxc5 {[%clk 0:01:45.6]} 16... Bxc5 {[%clk 0:01:55.1]}
17. Nb3 {[%clk 0:01:42.4]} 17... Be7 {[%clk 0:01:46.7]} 18. Ng5 {[%clk
0:01:40.1]} 18... bxc3 {[%clk 0:01:39.5]} 19. bxc3 {[%clk 0:01:36]} 19... Nxe5
{[%clk 0:01:32.6]} 20. Bf4 {[%clk 0:01:19.2]} 20... Nbc4 {[%clk 0:01:33.6]} 21.
Nd2 {[%clk 0:01:06.4]} 21... Bxg5 {[%clk 0:01:34]} 22. Bxg5 {[%clk 0:01:06]}
22... Nxd2 {[%clk 0:01:28.6]} 23. Qxd2 {[%clk 0:01:03.2]} 23... Nc4 {[%clk
0:01:29.7]} 24. Qd4 {[%clk 0:00:50.6]} 24... Kf8 {[%clk 0:01:11.9]} 25. Bf4
{[%clk 0:00:41]} 25... Qb6 {[%clk 0:01:00.9]} 26. Qxb6 {[%clk 0:00:23.2]} 26...
Nxb6 {[%clk 0:01:02.8]} 27. Bd6+ {[%clk 0:00:21.5]} 27... Kg8 {[%clk 0:01:02.6]}
28. Be5 {[%clk 0:00:18.7]} 28... Nc4 {[%clk 0:00:58.3]} 29. Bd4 {[%clk 0:00:20]}
29... Rc8 {[%clk 0:00:54.7]} 30. Rab1 {[%clk 0:00:20.7]} 30... Rh5 {[%clk
0:00:51.4]} 31. Bd1 {[%clk 0:00:20.6]} 31... Rg5 {[%clk 0:00:50.4]} 32. Be2
{[%clk 0:00:20.9]} 32... Kh7 {[%clk 0:00:42.5]} 33. g3 {[%clk 0:00:21.8]} 33...
e5 {[%clk 0:00:35.6]} 34. Be3 {[%clk 0:00:09.2]} 34... Rg6 {[%clk 0:00:25.6]}
35. Bd3 {[%clk 0:00:07]} 35... e4 {[%clk 0:00:26.9]} 36. Bf1 {[%clk 0:00:07.2]}
36... Rcc6 {[%clk 0:00:24.6]} 37. Bd4 {[%clk 0:00:08.1]} 37... Nd2 {[%clk
0:00:20]} 38. Bxa6 {[%clk 0:00:06.7]} 38... Rxa6 {[%clk 0:00:19]} 39. Rb5 {[%clk
0:00:03.3]} 39... Nf3+ {[%clk 0:00:20.5]} 40. Kf1 {[%clk 0:00:04.9]} 40... Nxe1
{[%clk 0:00:19.6]} 41. Kxe1 {[%clk 0:00:06.8]} 41... Rg5 {[%clk 0:00:18.5]} 42.
h4 {[%clk 0:00:07.6]} 42... Rf5 {[%clk 0:00:19.2]} 43. Be3 {[%clk 0:00:05.4]}
43... Rc6 {[%clk 0:00:17.9]} 44. Kd2 {[%clk 0:00:05.3]} 44... a4 {[%clk
0:00:17.9]} 45. g4 {[%clk 0:00:06.3]} 45... Rf3 {[%clk 0:00:12.5]} 46. Rxd5
{[%clk 0:00:06.2]} 46... Rh3 {[%clk 0:00:12.1]} 47. h5 {[%clk 0:00:06.9]} 47...
Rh2 {[%clk 0:00:08.3]} 48. Rd4 {[%clk 0:00:06.2]} 48... a3 {[%clk 0:00:07.9]}
49. Rxe4 {[%clk 0:00:07]} 49... Rf6 {[%clk 0:00:08.3]} 50. Ke2 {[%clk 0:00:06]}
50... Rh1 {[%clk 0:00:07.7]} 51. Ra4 {[%clk 0:00:06.5]} 51... Ra1 {[%clk
0:00:06.8]} 52. Rxa3 {[%clk 0:00:07.8]} 52... Rc6 {[%clk 0:00:07.7]} 53. g5
{[%clk 0:00:08.3]} 53... Rb1 {[%clk 0:00:08.6]} 54. Bd4 {[%clk 0:00:09.3]} 54...
Rb2+ {[%clk 0:00:08.9]} 55. Kf3 {[%clk 0:00:10.7]} 55... Re6 {[%clk 0:00:10.3]}
56. Ra7 {[%clk 0:00:10.6]} 56... Rb5 {[%clk 0:00:08.3]} 57. Rxf7 {[%clk
0:00:10.4]} 57... Rxg5 {[%clk 0:00:09.1]} 58. a4 {[%clk 0:00:07.7]} 58... Rxh5
{[%clk 0:00:07.5]} 59. Rxg7+ {[%clk 0:00:08.5]} 59... Kh6 {[%clk 0:00:09.1]} 60.
Rg8 {[%clk 0:00:07.7]} 60... Ra5 {[%clk 0:00:09.5]} 61. Rh8+ {[%clk 0:00:06.4]}
61... Kg6 {[%clk 0:00:10.9]} 62. Rg8+ {[%clk 0:00:07.7]} 62... Kf7 {[%clk
0:00:10.9]} 63. Rg7+ {[%clk 0:00:08.7]} 63... Kf8 {[%clk 0:00:12.4]} 64. Rg4
{[%clk 0:00:05.6]} 64... Ke8 {[%clk 0:00:11.4]} 65. Be3 {[%clk 0:00:03.1]} 65...
Rf6+ {[%clk 0:00:12.1]} 66. Kg3 {[%clk 0:00:03.9]} 66... Rc6 {[%clk 0:00:13.3]}
67. Re4+ {[%clk 0:00:05]} 67... Kd7 {[%clk 0:00:14.2]} 68. Bd2 {[%clk
0:00:05.6]} 68... Rg6+ {[%clk 0:00:13.4]} 69. Kf3 {[%clk 0:00:06.8]} 69... Rf6+
{[%clk 0:00:15]} 70. Ke3 {[%clk 0:00:08.4]} 70... Re6 {[%clk 0:00:13.5]} 71. f4
{[%clk 0:00:07.4]} 71... Rxa4 {[%clk 0:00:13.1]} 72. Rxe6 {[%clk 0:00:05.5]}
72... Kxe6 {[%clk 0:00:15]} 73. Kd3 {[%clk 0:00:04.3]} 73... Kd5 {[%clk
0:00:13.5]} 74. Be3 {[%clk 0:00:05.3]} 74... Rc4 {[%clk 0:00:10.5]} 75. f5
{[%clk 0:00:06.1]} 75... Rc6 {[%clk 0:00:10.8]} 76. Bd4 {[%clk 0:00:07.2]} 76...
Rh6 {[%clk 0:00:10.9]} 77. f6 {[%clk 0:00:08.2]} 77... Rh3+ {[%clk 0:00:12.5]}
78. Kc2 {[%clk 0:00:08.1]} 78... Rf3 {[%clk 0:00:13.2]} 79. Kb3 {[%clk
0:00:09.3]} 79... Kc6 {[%clk 0:00:12.3]} 80. Kc4 {[%clk 0:00:10.1]} 80... Rf4
{[%clk 0:00:12.7]} 81. Kd3 {[%clk 0:00:10.8]} 81... Kd5 {[%clk 0:00:11.4]} 82.
c4+ {[%clk 0:00:11.8]} 82... Kc6 {[%clk 0:00:10.7]} 83. Ke3 {[%clk 0:00:12.3]}
83... Rf1 {[%clk 0:00:11.7]} 84. Ke4 {[%clk 0:00:13.6]} 84... Kd6 {[%clk
0:00:11.8]} 85. c5+ {[%clk 0:00:14.2]} 85... Ke6 {[%clk 0:00:12.8]} 86. Kd3
{[%clk 0:00:09.7]} 86... Rc1 {[%clk 0:00:11.1]} 87. Bc3 {[%clk 0:00:07.3]} 87...
Kd5 {[%clk 0:00:08.4]} 88. Bb4 {[%clk 0:00:05.1]} 88... Ke6 {[%clk 0:00:07.5]}
89. Bc3 {[%clk 0:00:05]} 89... Kd5 {[%clk 0:00:09]} 90. Bb4 {[%clk 0:00:03.2]}
90... Ke6 {[%clk 0:00:09.4]} 91. Bc3 {[%clk 0:00:04.5]} 91... Kd5 {[%clk
0:00:10.1]} 92. Bd2 {[%clk 0:00:02.7]} 92... Rxc5 {[%clk 0:00:09.9]} 93. f7
{[%clk 0:00:03.8]} 93... Rc8 {[%clk 0:00:09.7]} 94. Bh6 {[%clk 0:00:04.8]} 94...
Ke6 {[%clk 0:00:10.4]} 95. f8=Q {[%clk 0:00:05.6]} 95... Rxf8 {[%clk 0:00:11.9]}
96. Bxf8 {[%clk 0:00:07.5]} 1/2-1/2

[Event "*** Titled Tuesday Blitz"]
[Site "Chess.com"]
[Date "2019.04.02"]
[Round "5"]
[White "Mikedannnn"]
[Black "ilm2034"]
[Result "1-0"]
[WhiteElo "2522"]
[BlackElo "2403"]
[TimeControl "180+2"]
[EndTime "14:58:02 PDT"]
[Termination "Mikedannnn won by checkmate"]

1. e4 {[%clk 0:03:01.9]} 1... d6 {[%clk 0:03:00.6]} 2. d4 {[%clk 0:03:02.6]}
2... Nf6 {[%clk 0:03:01.8]} 3. Nc3 {[%clk 0:03:03.8]} 3... Bg4 {[%clk 0:03:03]}
4. f3 {[%clk 0:03:04]} 4... Bh5 {[%clk 0:03:04.6]} 5. g4 {[%clk 0:02:58.6]} 5...
Bg6 {[%clk 0:03:05.1]} 6. h4 {[%clk 0:02:59.7]} 6... h5 {[%clk 0:03:04.9]} 7. g5
{[%clk 0:03:00.7]} 7... Nfd7 {[%clk 0:03:05.8]} 8. f4 {[%clk 0:02:59.7]} 8... e6
{[%clk 0:02:54.7]} 9. Bh3 {[%clk 0:02:58.1]} 9... f5 {[%clk 0:02:51.3]} 10. exf5
{[%clk 0:02:26.7]} 10... Bxf5 {[%clk 0:02:51.4]} 11. Qe2 {[%clk 0:01:40.2]}
11... Nc6 {[%clk 0:02:41.1]} 12. Bxf5 {[%clk 0:01:39.8]} 12... Nxd4 {[%clk
0:02:41.9]} 13. Bg6+ {[%clk 0:01:40.9]} 13... Ke7 {[%clk 0:02:42.8]} 14. Nd5#
{[%clk 0:01:40.6]} 1-0

[Event "*** Titled Tuesday Blitz"]
[Site "Chess.com"]
[Date "2019.04.02"]
[Round "5"]
[White "Konavets"]
[Black "Off-War"]
[Result "1-0"]
[WhiteElo "2809"]
[BlackElo "2628"]
[TimeControl "180+2"]
[EndTime "14:58:46 PDT"]
[Termination "Konavets won by resignation"]

1. d4 {[%clk 0:03:01.9]} 1... Nf6 {[%clk 0:02:59]} 2. c4 {[%clk 0:03:01.6]} 2...
e6 {[%clk 0:03:00.2]} 3. Nc3 {[%clk 0:03:02.5]} 3... Bb4 {[%clk 0:03:01]} 4. f3
{[%clk 0:03:03.9]} 4... c5 {[%clk 0:02:56.3]} 5. d5 {[%clk 0:03:04.9]} 5... b5
{[%clk 0:02:55.9]} 6. e4 {[%clk 0:03:03.1]} 6... bxc4 {[%clk 0:02:56.6]} 7. Bxc4
{[%clk 0:03:03.9]} 7... O-O {[%clk 0:02:57.3]} 8. Ne2 {[%clk 0:03:01.3]} 8...
exd5 {[%clk 0:02:58]} 9. Bxd5 {[%clk 0:03:02.2]} 9... Nxd5 {[%clk 0:02:58.5]}
10. Qxd5 {[%clk 0:03:04.1]} 10... Qb6 {[%clk 0:02:55.1]} 11. O-O {[%clk
0:03:05.2]} 11... Bb7 {[%clk 0:02:53.7]} 12. Qh5 {[%clk 0:03:06.1]} 12... c4+
{[%clk 0:02:10.5]} 13. Kh1 {[%clk 0:03:06]} 13... Na6 {[%clk 0:02:10.8]} 14. Rd1
{[%clk 0:03:01.4]} 14... Bc6 {[%clk 0:01:56]} 15. Nd4 {[%clk 0:02:56.7]} 15...
Nc5 {[%clk 0:01:46]} 16. Nf5 {[%clk 0:02:56.3]} 16... Nd3 {[%clk 0:01:45.5]} 17.
Rxd3 {[%clk 0:02:56.7]} 17... cxd3 {[%clk 0:01:39.9]} 18. Qg5 {[%clk 0:02:57.7]}
18... Bxc3 {[%clk 0:01:16.1]} 19. bxc3 {[%clk 0:02:59.6]} 19... Qd4 {[%clk
0:01:05.3]} 20. cxd4 {[%clk 0:02:59.6]} 1-0

[Event "*** Titled Tuesday Blitz"]
[Site "Chess.com"]
[Date "2019.04.02"]
[Round "5"]
[White "SergioGarciaFuentes"]
[Black "gemarin"]
[Result "0-1"]
[WhiteElo "2038"]
[BlackElo "2059"]
[TimeControl "180+2"]
[EndTime "14:59:23 PDT"]
[Termination "gemarin won by resignation"]

1. d4 {[%clk 0:03:01.9]} 1... d5 {[%clk 0:03:00]} 2. c4 {[%clk 0:03:01.8]} 2...
c6 {[%clk 0:03:00.4]} 3. Nf3 {[%clk 0:03:01.2]} 3... Nf6 {[%clk 0:03:00.6]} 4.
cxd5 {[%clk 0:02:49.7]} 4... cxd5 {[%clk 0:02:58]} 5. Nc3 {[%clk 0:02:51.2]}
5... Nc6 {[%clk 0:02:54.8]} 6. Ne5 {[%clk 0:02:40.8]} 6... e6 {[%clk 0:02:45]}
7. Nxc6 {[%clk 0:02:40.9]} 7... bxc6 {[%clk 0:02:45.4]} 8. e3 {[%clk 0:02:41.3]}
8... Bd6 {[%clk 0:02:42.4]} 9. Bd3 {[%clk 0:02:41.4]} 9... O-O {[%clk
0:02:41.2]} 10. Na4 {[%clk 0:02:39.9]} 10... Ba6 {[%clk 0:02:31.7]} 11. O-O
{[%clk 0:02:34.2]} 11... Bxd3 {[%clk 0:02:25.2]} 12. Qxd3 {[%clk 0:02:35.7]}
12... Qa5 {[%clk 0:02:26.6]} 13. b3 {[%clk 0:02:32.3]} 13... c5 {[%clk 0:02:26]}
14. Bd2 {[%clk 0:02:27.3]} 14... c4 {[%clk 0:02:06]} 15. Bxa5 {[%clk 0:02:11.6]}
15... cxd3 {[%clk 0:02:07.2]} 16. Rfd1 {[%clk 0:02:11.5]} 16... Rac8 {[%clk
0:01:59.1]} 17. Rxd3 {[%clk 0:02:12.3]} 17... Rc2 {[%clk 0:02:00.4]} 18. Rd2
{[%clk 0:02:10.6]} 18... Rfc8 {[%clk 0:02:01.7]} 19. Kf1 {[%clk 0:01:55.3]}
19... Ne4 {[%clk 0:02:01.2]} 20. Re2 {[%clk 0:01:47.8]} 20... Rxe2 {[%clk
0:01:58.7]} 21. Kxe2 {[%clk 0:01:47.9]} 21... Rc2+ {[%clk 0:01:59.9]} 22. Kd3
{[%clk 0:01:47.2]} 0-1

[Event "*** Titled Tuesday Blitz"]
[Site "Chess.com"]
[Date "2019.04.02"]
[Round "5"]
[White "DoHoChess"]
[Black "Floatingdream1"]
[Result "0-1"]
[WhiteElo "2544"]
[BlackElo "2814"]
[TimeControl "180+2"]
[EndTime "14:59:42 PDT"]
[Termination "Floatingdream1 won by resignation"]

1. c4 {[%clk 0:03:01.9]} 1... c5 {[%clk 0:03:00.5]} 2. Nf3 {[%clk 0:03:00.3]}
2... g6 {[%clk 0:03:01.7]} 3. g3 {[%clk 0:03:00]} 3... Bg7 {[%clk 0:03:02.3]} 4.
Bg2 {[%clk 0:03:01.7]} 4... Nc6 {[%clk 0:03:03.8]} 5. Nc3 {[%clk 0:03:03.4]}
5... e6 {[%clk 0:03:05]} 6. d4 {[%clk 0:02:57.6]} 6... cxd4 {[%clk 0:03:04.7]}
7. Nb5 {[%clk 0:02:57.9]} 7... d5 {[%clk 0:02:55.9]} 8. cxd5 {[%clk 0:02:59.2]}
8... exd5 {[%clk 0:02:56.7]} 9. O-O {[%clk 0:02:58.9]} 9... Nge7 {[%clk
0:02:57.1]} 10. Nfxd4 {[%clk 0:02:57.4]} 10... O-O {[%clk 0:02:57.8]} 11. Be3
{[%clk 0:02:56.8]} 11... a6 {[%clk 0:02:56.4]} 12. Nc3 {[%clk 0:02:57.3]} 12...
Ne5 {[%clk 0:02:57.4]} 13. Bg5 {[%clk 0:02:53.1]} 13... f6 {[%clk 0:02:43.8]}
14. Bf4 {[%clk 0:02:53.9]} 14... g5 {[%clk 0:02:28.2]} 15. Bc1 {[%clk 0:02:47]}
15... b5 {[%clk 0:02:25.8]} 16. Qb3 {[%clk 0:02:44.3]} 16... Nc4 {[%clk
0:02:25.9]} 17. a4 {[%clk 0:02:41.5]} 17... f5 {[%clk 0:02:07.3]} 18. Rd1 {[%clk
0:02:39.7]} 18... h6 {[%clk 0:01:58.7]} 19. axb5 {[%clk 0:02:39.1]} 19... Kh8
{[%clk 0:01:40]} 20. Nxd5 {[%clk 0:02:33.2]} 20... Nxd5 {[%clk 0:01:39.5]} 21.
Qxc4 {[%clk 0:02:33.2]} 21... axb5 {[%clk 0:01:40.6]} 22. Rxa8 {[%clk
0:02:17.5]} 22... bxc4 {[%clk 0:01:40]} 23. Ne6 {[%clk 0:02:18.9]} 23... Bxe6
{[%clk 0:01:38.7]} 24. Rxd8 {[%clk 0:02:18.7]} 24... Rxd8 {[%clk 0:01:40.2]} 25.
g4 {[%clk 0:02:18.5]} 25... f4 {[%clk 0:01:37.6]} 26. e4 {[%clk 0:02:11.6]}
26... fxe3 {[%clk 0:01:38.4]} 27. fxe3 {[%clk 0:02:12.1]} 27... Rd7 {[%clk
0:01:39.7]} 28. h3 {[%clk 0:02:10.1]} 28... Nb4 {[%clk 0:01:38.6]} 0-1

[Event "*** Titled Tuesday Blitz"]
[Site "Chess.com"]
[Date "2019.04.02"]
[Round "5"]
[White "MrChessSponge"]
[Black "PawnEatingZombie"]
[Result "1-0"]
[WhiteElo "2267"]
[BlackElo "2157"]
[TimeControl "180+2"]
[EndTime "15:00:08 PDT"]
[Termination "MrChessSponge won by resignation"]

1. d4 {[%clk 0:03:01.9]} 1... d5 {[%clk 0:03:00.2]} 2. c4 {[%clk 0:02:54.1]}
2... e6 {[%clk 0:03:00.5]} 3. Nf3 {[%clk 0:02:47.6]} 3... dxc4 {[%clk 0:03:00]}
4. e3 {[%clk 0:02:34.8]} 4... b5 {[%clk 0:02:55.7]} 5. a4 {[%clk 0:02:23.3]}
5... c6 {[%clk 0:02:55.8]} 6. axb5 {[%clk 0:02:14.8]} 6... cxb5 {[%clk
0:02:57.7]} 7. b3 {[%clk 0:02:15.7]} 7... Bb4+ {[%clk 0:02:58.3]} 8. Bd2 {[%clk
0:02:13]} 8... Bxd2+ {[%clk 0:02:59]} 9. Nbxd2 {[%clk 0:02:11]} 9... a5 {[%clk
0:02:53.9]} 10. bxc4 {[%clk 0:02:06.1]} 10... b4 {[%clk 0:02:54.9]} 11. Ne5
{[%clk 0:02:00.9]} 11... Nf6 {[%clk 0:02:44]} 12. Be2 {[%clk 0:01:52.8]} 12...
O-O {[%clk 0:02:44.1]} 13. Bf3 {[%clk 0:01:51]} 13... Ra6 {[%clk 0:02:38.6]} 14.
O-O {[%clk 0:01:49]} 14... Qc7 {[%clk 0:02:33.1]} 15. Qa4 {[%clk 0:01:40]} 15...
Bb7 {[%clk 0:02:21.9]} 16. Bxb7 {[%clk 0:01:29.9]} 16... Qxb7 {[%clk 0:02:22.6]}
17. Nb3 {[%clk 0:01:31.8]} 17... Nc6 {[%clk 0:02:02.2]} 18. Nc5 {[%clk 0:01:28]}
18... Qc8 {[%clk 0:01:37.6]} 19. Nxa6 {[%clk 0:01:21.1]} 19... Nxe5 {[%clk
0:01:30.5]} 20. dxe5 {[%clk 0:01:20.9]} 20... Nd7 {[%clk 0:01:32]} 21. Qxa5
{[%clk 0:01:17.7]} 1-0